[Event "1st Serbian League 2022"]
[Site "Vrnjacka Banja"]
[Date "2022.09.25"]
[Round "6.19"]
[White "Ioannidis, Evgenios"]
[Black "Predojevic, Borki"]
[Result "1/2-1/2"]
[ECO "D31"]
[WhiteElo "2486"]
[BlackElo "2584"]
[Annotator "TA"]
[PlyCount "41"]
[EventDate "2022.09.20"]
[EventType "team-tourn"]
[EventCountry "SRB"]
[SourceTitle "playchess.com"]
[Source "ChessBase"]
[SourceQuality "1"]
[TimeControl "40/5400+30:1800+30"]

{[%evp 16,28,0,0,0,0,0,0,0,0,0,0,0,0,-4]} 1. d4 {[%emt 0:00:08]} d5 {[%emt 0:00:08]} 2. c4 {[%emt 0:00:17]} e6 {[%emt 0:00:07]} 3. Nc3 {[%emt 0:00:18]} c6 {[%emt 0:00:19]} 4. e4 {[%emt 0:00:51]} dxe4 {[%emt 0:00:45]} 5. Nxe4 {[%emt 0:00:09]} Bb4+ {[%emt 0:00:05]} 6. Bd2 {[%emt 0:01:34][%cal Bc1d2,Bd2b4,Bb4d6,Bd6e5][%mdl 32]} Qxd4 {[%emt 0:00:32]} 7. Bxb4 {[%emt 0:00:05]} Qxe4+ {[%emt 0:00:06]} 8. Be2 {[%emt 0:00:05]} Na6 {[%emt 0:00:06]} 9. Bd6 {[%emt 0:00:27] Threatens to win with Nf3. The position is equal.} Qxg2 {[%emt 0:01:58] D31: Queen's Gambit Declined: Semi-Slav without ...Nf6 (+ Marshall Gambit and Noteboom) and Exchange Variation lines without ...Nf6.} 10. Qd2 {[%emt 0:00:10]} Nf6 {[%emt 0:01:36]} (10... Qxh1 $2 11. O-O-O Qe4 {[#]} 12. Be7 $1 $18 {[%mdl 512]}) 11. Bf3 {[%emt 0:04:35]} Qg6 {[%emt 0:00:26]} 12. O-O-O {[%emt 0:00:42] [#] Hoping for Ne2.} e5 {[%emt 0:00:13] And now ...Ne4 would win.} (12... Ne4 $2 13. Bxe4 Qf6 14. Nf3 $18) 13. Bxe5 {[%emt 0:05:41][%csl Gd1][%cal Rd2d8] This bishop pair is nice.} Be6 {[%emt 0:00:35] ...Nd7 is the strong threat.} 14. Ne2 {[%emt 0:09:58] Strongly threatening Rhe1.} Qf5 {[%emt 0:00:46] [#] A balanced but interesting game.  Weighted Error Value: White=0.00 (flawless) /Black=0.00 (flawless)} {Predecessor:} 15. Bf4 $146 Qc5 16. Nc3 Qxc4 17. Be2 Qb4 18. Bxa6 bxa6 19. Bd6 Qb7 20. Bc5 Nd5 21. Ne4 {1-0 (62) Yoo,C (2548)-Burke,J (2579) Saint Louis 2022} 1/2-1/2

[Event "1st Serbian League 2022"]
[Site "Vrnjacka Banja"]
[Date "2022.09.25"]
[Round "6.20"]
[White "Vuckovic, Bojan"]
[Black "Damljanovic, Branko"]
[Result "0-1"]
[ECO "B60"]
[WhiteElo "2559"]
[BlackElo "2436"]
[Annotator "TA"]
[PlyCount "68"]
[EventDate "2022.09.20"]
[EventType "team-tourn"]
[EventCountry "SRB"]
[SourceTitle "playchess.com"]
[Source "ChessBase"]
[SourceQuality "1"]
[TimeControl "40/5400+30:1800+30"]

{[%evp 12,68,56,47,214,221,203,56,50,50,50,50,50,46,49,49,48,44,58,45,54,55,52,36,39,22,45,0,0,0,0,-8,-13,-129,-131,-170,-177,-185,-185,-227,-232,-239,-229,-234,-234,-207,-223,-392,-383,-477,-482,-1001,-981,-5640,-5477,-29994,-3494,-29995,-29996]} 1. e4 {[%emt 0:00:08]} c5 {[%emt 0:00:36]} 2. Nf3 {[%emt 0:00:14]} d6 {[%emt 0:00:40]} 3. d4 {[%emt 0:00:26]} cxd4 {[%emt 0:00:03]} 4. Nxd4 {[%emt 0:00:06]} Nf6 {[%emt 0:00:14]} 5. Nc3 {[%emt 0:00:07]} Nc6 {[%emt 0:04:20][%cal Bb8c6,Bc6d4,Bd4c2][%mdl 32]} 6. Bg5 {[%emt 0:01:03]} Qb6 {[%emt 0:00:07]} 7. Be3 {[%emt 0:06:13] Strongly threatening Nxc6.} Ng4 $2 {[%emt 0:12:11] B60: Sicilian: Richter-Rauzer: Unusual Black 6th moves and 6...Bd7 without 7 Qd2.} ({Better is} 7... Qd8 $14) 8. Nd5 $1 $18 {[%emt 0:05:29]} Nxe3 {[%emt 0:00:19]} 9. Nxb6 {[%emt 0:04:28]} (9. fxe3 $18 Qd8 10. Nb5 (10. Bb5 Bd7 $11)) 9... Nxd1 $14 {[%emt 0:00:12] White is slightly better.} 10. Nxa8 {[%emt 0:00:10][%cal Bb6a8,Ba8c7,Bc7b5][%mdl 32]} Nxd4 {[%emt 0:16:29] [#]} 11. Rxd1 $146 {[%emt 0:04:27]} ({Predecessor:} 11. Nc7+ Kd8 12. Rxd1 Nxc2+ 13. Kd2 Kxc7 14. Kxc2 Be6 15. Kb1 Kb6 16. Rc1 d5 17. Bd3 {½-½ (48) Thavandiran,S (2191)-Ivanov,I (2407) Guelph 2005}) 11... Nxc2+ {[%emt 0:00:43]} 12. Kd2 {[%emt 0:00:32]} Nd4 {[%emt 0:01:03]} 13. Nc7+ {[%emt 0:03:56]} Kd8 {[%emt 0:00:29]} 14. Nb5 {[%emt 0:00:35]} Nc6 {[%emt 0:00:08]} 15. Bc4 {[%emt 0:06:09]} a6 {[%emt 0:02:02]} 16. Nc3 {[%emt 0:00:14]} e6 {[%emt 0:00:11]} 17. Kc2 {[%emt 0:07:29]} g6 {[%emt 0:06:00]} 18. Rd2 {[%emt 0:09:52]} Ke7 {[%emt 0:05:46]} 19. h4 {[%emt 0:10:12]} (19. Rhd1 $5 {[%cal Rd2d6]}) 19... Bh6 {[%emt 0:07:20]} 20. Rdd1 {[%emt 0:00:43]} b5 {[%emt 0:00:14][%cal Bb7b5,Bb5b4][%mdl 32]} 21. Bf1 {[%emt 0:02:08]} Bb7 {[%emt 0:00:19]} 22. a4 {[%emt 0:08:04]} (22. h5 $11 {keeps the balance.}) 22... b4 $17 {[%emt 0:00:45][%mdl 1024] Black has strong compensation.} 23. Ne2 {[%emt 0:01:17] [#]} Na5 $1 {[%emt 0:03:18]} 24. f3 {[%emt 0:01:04] [#]} Bc6 $1 {[%emt 0:02:42]} 25. b3 {[%emt 0:01:23]} Rc8 $1 {[%emt 0:02:41][%csl LRa4,LRe4][%cal Bh8c8,Bc8c3,Bc3b3][%mdl 32]} 26. Kb2 {[%emt 0:00:19]} Bg7+ {[%emt 0:01:20]} 27. Nd4 {[%emt 0:01:14]} Bb7 {[%emt 0:02:37] ...Nc6 is the strong threat. A strong pair of Bishops.} 28. Ka2 {[%emt 0:00:15]} Rc3 {[%emt 0:02:02]} 29. Rd2 $2 {[%emt 0:00:12]} (29. h5) 29... d5 $19 {[%emt 0:01:52]} ({Worse is} 29... e5 30. Ne2 Rxb3 31. h5 $17) 30. exd5 {[%emt 0:12:44]} Bxd5 {[%emt 0:00:15][%cal Ra5b3]} 31. Bxa6 {[%emt 0:01:31]} (31. Rd3 $142 Rxd3 32. Bxd3 Bxd4 33. Rb1) 31... Nxb3 {[%emt 0:00:50]} 32. Nxb3 {[%emt 0:00:14]} Rxb3 {[%emt 0:00:20]} 33. Rxd5 {[%emt 0:00:15]} Rb2+ {[%emt 0:00:20]} 34. Ka1 {[%emt 0:00:05]} b3 {[%emt 0:01:09] Weighted Error Value: White=0.80/Black=0.12 (very precise)} 0-1

[Event "1st Serbian League 2022"]
[Site "Vrnjacka Banja"]
[Date "2022.09.25"]
[Round "6.21"]
[White "Tadic, Branko"]
[Black "Roganovic, Milos"]
[Result "1/2-1/2"]
[ECO "D02"]
[WhiteElo "2455"]
[BlackElo "2487"]
[Annotator "TA"]
[PlyCount "115"]
[EventDate "2022.09.20"]
[EventType "team-tourn"]
[EventCountry "SRB"]
[SourceTitle "playchess.com"]
[Source "ChessBase"]
[SourceQuality "1"]
[TimeControl "40/5400+30:1800+30"]

{[%evp 10,115,22,8,14,0,3,0,5,4,14,0,0,-5,0,0,0,0,0,0,0,0,0,0,35,25,27,37,32,42,44,8,11,7,26,13,63,45,31,37,44,25,43,20,19,20,61,8,8,8,8,7,0,0,0,0,54,0,19,20,0,29,35,42,125,131,168,119,114,133,208,233,237,227,294,281,273,300,274,0,0,0,0,0,0,0,0,0,0,0,0,0,0,0,0,0,0,0,0,0,0,0,0,0,0,0,0,0]} 1. Nf3 {[%emt 0:04:38]} Nf6 {[%emt 0:00:14]} 2. d4 {[%emt 0:00:28]} g6 {[%emt 0:01:42]} 3. g3 {[%emt 0:01:29]} Bg7 {[%emt 0:00:59]} 4. Bg2 {[%emt 0:00:09]} d5 {[%emt 0:01:13]} 5. O-O {[%emt 0:00:48]} O-O {[%emt 0:00:26]} 6. c3 {[%emt 0:00:09]} Nc6 {[%emt 0:08:58] D02: 1 d4 d5 2 Nf3 sidelines, including 2...Nf6 3 g3 and 2...Nf6 3 Bf4.} 7. a4 {[%emt 0:02:05]} Re8 {[%emt 0:06:53]} 8. Bf4 {[%emt 0:02:44]} Nh5 {[%emt 0:10:59]} 9. Bg5 {[%emt 0:00:20]} h6 {[%emt 0:02:27] [#]} 10. Be3 $146 {[%emt 0:00:08]} ({Predecessor:} 10. Bd2 e5 11. dxe5 Nxe5 12. Na3 c6 13. Qc1 Kh7 14. Nh4 b6 15. b4 Bb7 16. Qc2 {0-1 (42) Erceg,S (2080)-Sevelj,B Solin 2007}) 10... Nf6 {[%emt 0:06:30]} 11. h3 {[%emt 0:01:31]} e5 {[%emt 0:08:46]} 12. dxe5 {[%emt 0:10:01]} Nxe5 {[%emt 0:00:48]} 13. Nxe5 {[%emt 0:06:41]} Rxe5 {[%emt 0:00:08]} 14. Bd4 {[%emt 0:00:02]} Re8 {[%emt 0:01:03]} 15. Nd2 {[%emt 0:01:38]} Qe7 {[%emt 0:04:20]} 16. Re1 {[%emt 0:00:30]} c5 {[%emt 0:00:19]} 17. Bxf6 {[%emt 0:00:24]} Bxf6 {[%emt 0:01:12]} 18. e4 {[%emt 0:05:27]} d4 {[%emt 0:04:38]} 19. e5 {[%emt 0:00:45]} Bg7 {[%emt 0:11:40]} (19... Bxe5 $2 20. cxd4 cxd4 21. f4 $18) 20. f4 {[%emt 0:02:54]} Rd8 {[%emt 0:03:26]} 21. c4 {[%emt 0:02:40]} Be6 {[%emt 0:01:43]} 22. Kh2 {[%emt 0:03:32]} d3 {[%emt 0:00:49]} (22... a6 $11) 23. Ra3 {[%emt 0:00:58]} Rd4 {[%emt 0:01:15]} 24. Rb3 {[%emt 0:07:44]} Rb8 {[%emt 0:01:44]} 25. Re4 {[%emt 0:22:18]} Rd7 {[%emt 0:01:43]} 26. Re3 {[%emt 0:23:27]} Rbd8 {[%emt 0:05:18]} 27. Be4 {[%emt 0:00:00][%cal Re3d3]} b6 {[%emt 0:00:54]} 28. Rbxd3 {[%emt 0:00:00]} ({Much weaker is} 28. Rexd3 Rxd3 29. Rxd3 Rxd3 30. Bxd3 Qd7 $11) (28. Qf3 $14) 28... Rxd3 $11 {[%emt 0:00:43]} 29. Bxd3 {[%emt 0:00:00]} Qd7 {[%emt 0:00:24] White must now prevent ...Bf5.} 30. Ne4 {[%emt 0:00:00]} Bxc4 {[%emt 0:01:27]} 31. Nd6 {[%emt 0:00:00]} Bxd3 {[%emt 0:04:31]} 32. Rxd3 {[%emt 0:00:00]} h5 {[%emt 0:00:44]} (32... Qe6 $11) 33. b3 {[%emt 0:00:00]} (33. Qb3 $14) 33... Qe6 {[%emt 0:03:31]} 34. Nb5 {[%emt 0:00:00][%csl LRa7,LRd8]} Rxd3 {[%emt 0:00:27]} 35. Qxd3 {[%emt 0:00:00][%mdl 4096] Endgame KQB-KQN} h4 {[%emt 0:01:24]} 36. gxh4 {[%emt 0:00:16]} Qe7 {[%emt 0:03:53] [#]} ({Black should play} 36... a6 $1 $14 37. Nd6 Bf8) 37. Kg3 $1 $16 {[%emt 0:01:58] White is more active.} Qb7 {[%emt 0:01:16] Inhibits Qd5.} 38. Qf3 {[%emt 0:02:17] Inhibits Qh1.} (38. h5 $18) 38... Qd7 {[%emt 0:00:02]} 39. Nd6 {[%emt 0:00:14]} c4 {[%emt 0:00:04]} (39... Qe6 $16 {was worth a try.}) 40. Nxc4 $18 {[%emt 0:00:37]} Qd4 {[%emt 0:01:07]} 41. Qe3 {[%emt 0:01:44] Prevents Qg1+.} Qd5 {[%emt 0:00:08]} 42. Nd6 {[%emt 0:09:09]} Bf8 {[%emt 0:01:30]} 43. Ne4 {[%emt 0:01:18] Threatening mate with Nf6+.} Be7 {[%emt 0:00:29] [#]} 44. Nf6+ $2 {[%emt 0:00:59]} (44. h5 $1 $18) 44... Bxf6 $11 {[%emt 0:00:09] The position is equal.} 45. exf6 {[%emt 0:00:01][%cal Oh4h5] aiming for h5! KQ-KQ} Kh7 $1 {[%emt 0:04:09]} 46. b4 {[%emt 0:03:28][%cal Oh4h5] Threatens to win with h5!} Qd6 {[%emt 0:05:31]} 47. Qc3 {[%emt 0:03:15][%cal Oh4h5] Strongly threatening h5!} Qd1 {[%emt 0:00:27]} 48. Qc4 {[%emt 0:03:08]} Qg1+ {[%emt 0:05:46]} 49. Kf3 {[%emt 0:00:03]} Qd1+ {[%emt 0:00:20]} 50. Kg2 {[%emt 0:01:22]} Qd2+ {[%emt 0:00:33]} 51. Kf1 {[%emt 0:00:08]} Qd1+ {[%emt 0:00:15]} 52. Kf2 {[%emt 0:00:05]} Qd2+ {[%emt 0:00:05]} 53. Kf3 {[%emt 0:00:03]} Qd1+ {[%emt 0:00:11]} 54. Ke4 {[%emt 0:05:35]} Qe1+ $1 {[%emt 0:03:09]} 55. Kd4 {[%emt 0:03:02]} Qa1+ {[%emt 0:00:36]} 56. Kd3 {[%emt 0:00:37]} Qf1+ {[%emt 0:00:40]} 57. Kc3 {[%emt 0:00:17]} Qc1+ {[%emt 0:00:15]} 58. Kd3 {[%emt 0:03:02] White really could win this.  Weighted Error Value: White=0.13 (very precise) /Black=0.12 (very precise)} 1/2-1/2

[Event "1st Serbian League 2022"]
[Site "Vrnjacka Banja"]
[Date "2022.09.25"]
[Round "6.22"]
[White "Zajic, Milan"]
[Black "Nikolovski, Nikola"]
[Result "1-0"]
[ECO "C16"]
[WhiteElo "2402"]
[BlackElo "2359"]
[Annotator "TA"]
[PlyCount "81"]
[EventDate "2022.09.20"]
[EventType "team-tourn"]
[EventCountry "SRB"]
[SourceTitle "playchess.com"]
[Source "ChessBase"]
[SourceQuality "1"]
[TimeControl "40/5400+30:1800+30"]

{[%evp 9,81,19,46,25,37,45,37,39,103,89,124,119,129,127,134,135,166,135,176,177,201,200,201,191,211,191,200,201,216,200,300,298,306,306,545,560,550,549,669,768,975,974,977,978,873,234,962,955,1161,1120,1700,1551,1454,1393,1363,1332,1312,1216,3370,1625,1650,1636,1589,1498,2372,1994,5701,5709,12841,11868,5273,5190,5269,5269]} 1. e4 {[%emt 0:00:03]} e6 {[%emt 0:00:08]} 2. d4 {[%emt 0:00:05]} d5 {[%emt 0:00:20]} 3. Nc3 {[%emt 0:00:05]} Bb4 {[%emt 0:00:35]} 4. e5 {[%emt 0:00:06]} b6 {[%emt 0:00:38]} 5. h4 {[%emt 0:00:09][%cal Bh2h4,Bh4h5][%mdl 32]} Qd7 {[%emt 0:07:12]} 6. h5 {[%emt 0:00:23] C16: French: 3 Nc3 Bb4 4 e5: Lines without ...c5.} (6. Qg4 $5 {[%cal Rg4g7]} Kf8 7. Bd2 $14) 6... h6 {[%emt 0:00:09]} 7. Qg4 {[%emt 0:00:27]} Bf8 {[%emt 0:01:47]} 8. b4 {[%emt 0:00:09] [#] White is slightly better.} Nc6 $146 {[%emt 0:23:36]} (8... Bxb4 $2 {[#]} 9. Qxg7 $1 Bxc3+ 10. Bd2 Bxa1 11. Qxh8 $18) (8... f5 $14 9. Qg6+ Qf7) ({Predecessor:} 8... a6 9. a3 Ne7 10. Bd3 c5 11. bxc5 bxc5 12. dxc5 Qc7 13. Nf3 Nd7 14. O-O Nxc5 {1-0 (30) Sheng,J (2453)-Hevia Alejano,C (2467) Chess.com INT 2021}) 9. a3 $16 {[%emt 0:01:41][%cal Ba2a3,Ba3a4,Ba4a5][%mdl 32]} Bb7 {[%emt 0:00:14]} 10. Nf3 {[%emt 0:03:00]} O-O-O {[%emt 0:00:49]} 11. Bd3 {[%emt 0:02:28]} Kb8 {[%emt 0:01:20]} 12. Ne2 {[%emt 0:03:20] White is much more active.} Rc8 {[%emt 0:14:40]} 13. Bd2 {[%emt 0:01:11]} Nd8 {[%emt 0:08:21]} 14. a4 {[%emt 0:02:11]} f5 {[%emt 0:07:08]} 15. Qg3 {[%emt 0:05:35]} Ne7 {[%emt 0:00:51]} 16. a5 {[%emt 0:05:43]} Rg8 {[%emt 0:02:01]} 17. Nh4 {[%emt 0:08:29]} Qe8 {[%emt 0:00:37]} 18. Nf4 {[%emt 0:01:18]} Bc6 {[%emt 0:06:05]} 19. Ba6 {[%emt 0:05:16]} Bb7 {[%emt 0:05:49]} (19... Bb5 {might work better.}) 20. Bxb7 $18 {[%emt 0:11:02]} Kxb7 {[%emt 0:00:06]} 21. axb6 {[%emt 0:01:27]} axb6 $2 {[%emt 0:03:37]} (21... cxb6 {was necessary.} 22. Qa3 Ra8 23. Qa6+ Kb8) 22. Qd3 {[%emt 0:05:22]} (22. Qa3 Qb5 23. Qa7+ (23. c4 dxc4 24. d5 Nxd5 $16) 23... Kc6 $16) 22... Ra8 {[%emt 0:02:31]} 23. O-O {[%emt 0:02:32]} Rxa1 {[%emt 0:03:03]} 24. Rxa1 {[%emt 0:00:03]} Qc6 {[%emt 0:00:19]} 25. b5 {[%emt 0:04:04]} Qc4 {[%emt 0:01:59]} 26. Qa3 {[%emt 0:00:17][%csl Ga1][%cal Ra3a8] [#]} Kc8 {[%emt 0:00:23]} 27. Qa8+ $40 {[%emt 0:01:09][%mdl 128] White wants a kill.} Kd7 {[%emt 0:00:05]} 28. Qb8 {[%emt 0:01:13] Threatening mate with Ra8. White is clearly winning.} g5 {[%emt 0:01:37]} 29. hxg6 {[%emt 0:05:11]} (29. Ra8 Bg7 30. Nfg6 Nf7 31. Qxg8 Nxg8 32. Rxg8 Bxe5 33. dxe5 gxh4 $11) 29... Qxb5 {[%emt 0:01:40]} 30. Nh5 {[%emt 0:07:24] White wants to mate with Nf6+.} Bg7 {[%emt 0:00:10]} 31. Nf6+ {[%emt 0:02:42]} ({Stronger than} 31. Nxg7 Ndc6 32. Qb7 (32. c4 $2 Qb2 $19) 32... Rxg7 $11) 31... Bxf6 {[%emt 0:00:09]} 32. exf6 {[%emt 0:00:12]} Nec6 {[%emt 0:06:00]} 33. f7 {[%emt 0:22:43]} Qb2 {[%emt 0:01:38]} 34. fxg8=Q {[%emt 0:00:00]} (34. Ra8 $142 Nxb8 35. fxg8=Q Qxd4 36. Nf3) 34... Qxa1+ {[%emt 0:00:08]} 35. Kh2 {[%emt 0:00:00] White threatens Qg7+ and mate.} Nxb8 {[%emt 0:00:05]} 36. Qh7+ {[%emt 0:00:00]} Kc6 {[%emt 0:01:19]} 37. g7 {[%emt 0:00:00]} Nd7 {[%emt 0:00:06]} 38. Qxh6 {[%emt 0:00:52]} Qxd4 {[%emt 0:00:43]} 39. Nf3 {[%emt 0:00:33]} Qg4 {[%emt 0:01:25]} 40. Qg5 {[%emt 0:00:45]} Qxg5 {[%emt 0:00:34]} 41. Bxg5 {[%emt 0:30:20] Black did not feel at home in the position after the opening.  Weighted Error Value: White=0.04 (flawless) /Black=0.59} ({Weaker is} 41. Nxg5 Nf6 $14) 1-0

[Event "1st Serbian League 2022"]
[Site "Vrnjacka Banja"]
[Date "2022.09.25"]
[Round "6.23"]
[White "Milenkovic, Mladen"]
[Black "Stankovic, Milos"]
[Result "0-1"]
[ECO "B76"]
[WhiteElo "2379"]
[BlackElo "2439"]
[Annotator "TA"]
[PlyCount "66"]
[EventDate "2022.09.20"]
[EventType "team-tourn"]
[EventCountry "SRB"]
[SourceTitle "playchess.com"]
[Source "ChessBase"]
[SourceQuality "1"]
[TimeControl "40/5400+30:1800+30"]

{[%evp 27,66,25,44,-76,-25,-26,-1,-35,0,-62,-56,-39,13,-16,0,-102,-35,-54,-33,-91,-111,-123,-64,-34,-25,-20,-20,-511,-507,-498,-492,-500,-486,-487,-502,-489,-462,-575,-579,-516,-440]} 1. e4 {[%emt 0:00:09]} c5 {[%emt 0:01:10]} 2. Nf3 {[%emt 0:00:11]} d6 {[%emt 0:00:31]} 3. d4 {[%emt 0:00:16]} cxd4 {[%emt 0:00:29]} 4. Nxd4 {[%emt 0:00:03]} Nf6 {[%emt 0:00:31]} 5. Nc3 {[%emt 0:00:07]} g6 {[%emt 0:00:30]} 6. Be3 {[%emt 0:00:19]} Bg7 {[%emt 0:00:30]} 7. f3 {[%emt 0:00:15]} O-O {[%emt 0:00:33]} 8. Qd2 {[%emt 0:00:08]} Nc6 {[%emt 0:00:27]} 9. O-O-O {[%emt 0:00:27]} d5 {[%emt 0:00:35]} 10. exd5 {[%emt 0:00:20]} Nxd5 {[%emt 0:00:28]} 11. Nxc6 {[%emt 0:00:12]} bxc6 {[%emt 0:00:27]} 12. Bd4 {[%emt 0:04:02]} e5 {[%emt 0:00:39]} 13. Bc5 {[%emt 0:00:08]} Re8 {[%emt 0:01:18] is cutting edge theory.} 14. Nxd5 {[%emt 0:16:23]} cxd5 {[%emt 0:03:55]} 15. Bb5 {[%emt 0:01:34] B76: Sicilian Dragon: Yugoslav Attack, 9 g4 and 9 0-0-0.} (15. Qxd5 $14 {is the one way to stay ahead.} Qxd5 16. Rxd5) 15... Be6 {[%emt 0:14:09]} (15... d4 $17) 16. Bxe8 $11 {[%emt 0:09:29]} Qxe8 {[%emt 0:00:57]} 17. Kb1 {[%emt 0:00:38] The position is equal.} Rc8 {[%emt 0:05:01][%mdl 1024] Black has compensation.} 18. Ba3 {[%emt 0:02:10]} (18. Bxa7 d4 19. Qa5 Qd7 $17) (18. Bb4 $11) 18... Qa4 $15 {[%emt 0:01:32]} 19. Rc1 {[%emt 0:32:14] [#]} Rb8 $146 {[%emt 0:09:38]} (19... a5 $15) ({Predecessor:} 19... e4 20. Qb4 Qc6 21. Rhf1 Qc7 {0-1 (21) Piermattei,M (1600)-Mione,D (2303) SEMI email 1999}) 20. Be7 {[%emt 0:06:18]} (20. Bd6 $5 {[%cal Rd6b8]} Rc8 21. f4 $14) 20... a5 {[%emt 0:14:31][%cal Ba7a5,Ba5a4][%mdl 32]} (20... d4 21. b3 $14) 21. Rhd1 {[%emt 0:05:15]} (21. Bd6 $11 Rc8 22. f4) 21... Qb5 {[%emt 0:08:19]} (21... d4 $1 $17 {[%csl Ge6][%cal Ra4a2]} 22. b3 Qd7) 22. Ba3 $1 {[%emt 0:10:34]} d4 $40 {[%emt 0:03:28][%mdl 128] Black attacks.} 23. c3 {[%emt 0:02:12]} (23. c4 $15 Bxc4 24. Ka1 (24. b3 a4 $15)) 23... a4 $1 $17 {[%emt 0:02:24] Black has more active pieces.} 24. c4 {[%emt 0:07:56] [#]} ({Wrong is} 24. Bd6 $2 Qd5 $1 25. b4 Qxd6 $19) 24... Bxc4 {[%emt 0:01:35]} ({Black should try} 24... Qa6 $1 $17) 25. Qb4 $1 $15 {[%emt 0:00:12]} Qxb4 {[%emt 0:03:42] Chess con chili.} 26. Bxb4 {[%emt 0:00:03]} Be2 {[%emt 0:00:28][%cal Bc4e2,Be2d3,Bd3f5,Bf5e6][%mdl 32]} ({Much less strong is} 26... Rxb4 27. a3 Ba2+ 28. Kxa2 $16) 27. Re1 {[%emt 0:01:14][%mdl 8192] Loses the game.} (27. Rd2 $11 d3 28. a3) 27... Bd3+ $19 {[%emt 0:00:14] Black is clearly winning.} 28. Ka1 {[%emt 0:00:05]} Rxb4 {[%emt 0:00:18]} 29. Rc8+ {[%emt 0:00:12]} Bf8 {[%emt 0:00:13]} 30. Rxe5 {[%emt 0:00:05] Threatens to win with Ree8.} Bf5 {[%emt 0:01:55]} 31. a3 {[%emt 0:00:17] Rxf8+ is the strong threat.} Rb3 {[%emt 0:03:30]} (31... Bxc8 $2 {is the wrong capture.} 32. axb4 Be6 33. Rb5 $19) 32. Rd8 {[%emt 0:02:23]} Rd3 {[%emt 0:00:24] ( -> ...Rd1+)} 33. Re1 {[%emt 0:00:36] Against Rd1+} Be6 {[%emt 0:00:51] Weighted Error Value: White=0.62/Black=0.19 (very precise)} 0-1

[Event "1st Serbian League 2022"]
[Site "Vrnjacka Banja"]
[Date "2022.09.25"]
[Round "6.24"]
[White "Toth, Aleksandar"]
[Black "Zlatanovic, Boroljub"]
[Result "1/2-1/2"]
[ECO "A49"]
[WhiteElo "2320"]
[BlackElo "2313"]
[Annotator "TA"]
[PlyCount "64"]
[EventDate "2022.09.20"]
[EventType "team-tourn"]
[EventCountry "SRB"]
[SourceTitle "playchess.com"]
[Source "ChessBase"]
[SourceQuality "1"]
[TimeControl "40/5400+30:1800+30"]

{[%evp 13,64,26,43,33,50,55,58,11,43,18,38,22,65,63,65,66,68,70,80,69,75,48,54,17,74,43,71,12,36,15,24,18,37,33,23,7,6,2,25,25,95,96,184,184,184,82,72,0,176,0,77,0,176]} 1. Nf3 {[%emt 0:00:12]} Nf6 {[%emt 0:00:23]} 2. g3 {[%emt 0:00:07]} g6 {[%emt 0:00:05]} 3. Bg2 {[%emt 0:00:08]} Bg7 {[%emt 0:00:08]} 4. O-O {[%emt 0:00:30]} O-O {[%emt 0:00:18]} 5. d4 {[%emt 0:00:51]} d6 {[%emt 0:01:16]} 6. a4 {[%emt 0:02:50]} Nbd7 {[%emt 0:02:31]} 7. a5 {[%emt 0:03:34]} a6 {[%emt 0:02:03]} 8. Nc3 {[%emt 0:01:18] A49: 1 d4 Nf6 2 Nf3 g6 3 g3: Anti-King's Indian systems.} c6 {[%emt 0:05:14]} 9. e4 {[%emt 0:02:12]} e5 {[%emt 0:04:44]} 10. Re1 {[%emt 0:07:36]} (10. Be3 $14) 10... Re8 {[%emt 0:02:37]} 11. h3 {[%emt 0:00:33] [#]} exd4 $146 {[%emt 0:06:50]} ({Predecessor:} 11... Qc7 12. Bg5 exd4 13. Nxd4 Ne5 14. b3 c5 15. Nde2 Be6 16. Nf4 Nc6 17. Bxf6 Bxf6 {1-0 (60) Ider,B (2489)-Karjakin,S (2752) Chess.com INT 2020}) 12. Nxd4 {[%emt 0:00:06]} d5 {[%emt 0:09:47]} 13. exd5 {[%emt 0:06:02] White is more active.} Rxe1+ {[%emt 0:00:25]} 14. Qxe1 {[%emt 0:00:05]} Nxd5 {[%emt 0:00:52]} 15. Nxd5 {[%emt 0:04:42]} cxd5 {[%emt 0:00:54]} 16. Be3 {[%emt 0:10:50]} Ne5 {[%emt 0:02:20]} 17. b3 {[%emt 0:02:02] Against Nc4} Nc6 {[%emt 0:05:09]} 18. Qd2 {[%emt 0:01:26]} Bf5 {[%emt 0:06:15]} (18... Nxd4 $11 19. Bxd4 Bxd4 20. Qxd4 Be6) 19. Ra4 {[%emt 0:07:28]} Bd7 {[%emt 0:03:42]} 20. Ra2 {[%emt 0:05:02]} (20. Bxd5 $16 {White wants to play Nxc6.} Ne7 21. Bxb7) 20... Qe7 {[%emt 0:09:25]} 21. Kh2 {[%emt 0:09:36]} Re8 {[%emt 0:10:43]} (21... h5 {seems wilder.} 22. c3 h4 23. g4 Nxd4 24. Bxd4 Be6) 22. c3 {[%emt 0:05:32]} Qd6 {[%emt 0:03:32]} 23. Nxc6 {[%emt 0:07:30]} Bxc6 {[%emt 0:07:21]} 24. Bd4 {[%emt 0:03:01]} Bxd4 {[%emt 0:01:42]} 25. Qxd4 {[%emt 0:00:45]} Re1 {[%emt 0:00:09]} 26. Rd2 {[%emt 0:01:08]} Qa3 {[%emt 0:02:00]} (26... Qe5 $11) 27. Bxd5 $16 {[%emt 0:02:17]} Qc1 {[%emt 0:01:25]} (27... Qxa5 $16 {is a better defense.} 28. Bxc6 bxc6) 28. Bxc6 $18 {[%emt 0:02:02]} bxc6 {[%emt 0:00:07]} 29. Qd8+ {[%emt 0:01:01]} (29. b4 $18) 29... Kg7 $16 {[%emt 0:00:52] [#]} 30. Qd4+ {[%emt 0:00:05]} (30. Rd3 $1 $16) 30... Kg8 $18 {[%emt 0:00:09][%cal Oc6c5]} 31. Qd8+ {[%emt 0:00:10]} (31. b4 $18 {has better winning chances.}) 31... Kg7 $16 {[%emt 0:00:07]} 32. Qd4+ {[%emt 0:01:45]} (32. Rd3 $16) 32... Kg8 {[%emt 0:01:25] Weighted Error Value: White=0.37/Black=0.23 (precise)} 1/2-1/2